Workbook

Sheet P&G
A1: Capricon District Municipality
A2: RATSAKA WATER SUPPLY
A3: SCHEDULE 1 - PRELIMINARY AND GENERAL
A5: ITEM | B5: PAYMENT | C5: DESCRIPTION | D5: UNIT | E5: QUANTITY | F5: RATE | G5: AMOUNT
A6: NO. | B6: REFER.
B8: SABS | C8: GENERAL
B9: 1200A
A10: A.1 | B10: 8.3 | C10: Fixed Charges and Value Related Items
A12: 1.1 | C12: Contractual Requirements
A14: 1.1.1 | B14: 8.3.1 | C14: Fixed charge contractual requirements. | D14: Sum | E14: 1
A16: 1.1.2 | B16: 8.3.1 | C16: Value related contractual requirements. | D16: Sum | E16: 1
A18: 1.1.2 | B18: 8.3.2 | C18: Provision of Facilities on the Site
B20: 8.3.2.1 | C20: FACILITIES FOR ENGINEER
C22: a) Office as per PSAB2 | D22: Sum | E22: 1
C24: b) Sanitary | D24: Sum | E24: 1
C26: c) Provission of the Lap top for the use of the Engineer | D26: P Sum | E26: 1
C28: d) Handling cost and profit in respect of item © | D28: %
A30: 1.1.2.1 | B30: 8.3.2.2 | C30: FACILITIES FOR CONTRACTOR
C32: a) Offices, stores, workshops | D32: Sum | E32: 1
C34: b) Housing for staff | D34: Sum | E34: 1
C36: c) Toilets and ablutions | D36: Sum | E36: 1
C38: d) Fencing off site of construction camp | D38: Sum | E38: 1
C40: e) Provision of water, power and communication facilities | D40: Sum | E40: 1
C42: f) Tools and equipment | D42: Sum | E42: 1
A44: 1.1.2.2 | B44: 8.3.4 | C44: Removal of site establishment | D44: Sum | E44: 1
A51: TOTAL CARRIED FORWARD
A52: =+A$1 -> Capricon District Municipality
A53: =+A$2 -> RATSAKA WATER SUPPLY
A54: =+A$3 -> SCHEDULE 1 - PRELIMINARY AND GENERAL
A56: ITEM | B56: PAYMENT | C56: DESCRIPTION | D56: UNIT | E56: QUANTITY | F56: RATE | G56: AMOUNT
A57: NO. | B57: REFER.
A58: Brought Forward
B59: SABS
B60: 1200A
B61: 8.4 | C61: Time related Costs to be paid monthly
A62: 1.2.2 | B62: 8.4.1 | C62: Operation and Maintenance of Facilities on Site
B63: 8.4.2.1 | C63: FACILITIES FOR ENGINEER
C64: a) One furnished office | D64: month | E64: 10
B66: PSAB5.1 | C66: b) Provisional sum for the costs of cellular calls, fax
C67: and other charges | D67: month | E67: 10
B69: PSAB5.1 | C69: c) Survey Equipment | D69: month | E69: 10
C71: d) Provision of Computers, printing & photostat facilities | D71: month | E71: 10
B73: PSAB5.1 | C73: e) Overheads, charges and profit on b, c and d | D73: %
C75: FACILITIES FOR THE CONTRACTOR
C76: a) Office for Contractor | D76: month | E76: 10
C78: b) Housing of staff | D78: month | E78: 10
C80: c) Toilets and ablution | D80: month | E80: 10
C82: d) Provision of water, power and communication | D82: month | E82: 10
C83: facilities
C85: e) Tools and equipment | D85: month | E85: 10
A87: 1.2.3 | B87: 8.4.3 | C87: Supervision for duration of construction
A88: 1.2.3.1 | C88: Contractors supervision and management | D88: P Sum | E88: 10 | F88: R45,000.00 | G88: =E88*F88 -> R 450,000.00
C90: Handling cost and profit in respect of item 1.2.3.1 | D90: % | E90: =G88 -> R450,000.00
B92: 8.4.4 | C92: Company and head office overhead costs | D92: month | E92: =+E88 -> 10
A94: 1.3 | C94: NAMEBOARD
C95: Supply and install construction nameboard as per
C96: detail drawing | D96: No. | E96: 1.00
A98: 1.4 | C98: PROVISIONAL SUMS:
A100: 1.4.1 | B100: 8.5 b | C100: Community Liaison Officer:
A102: 1.4.1.1 | B102: PSA 14.5 a | C102: Provision for employment of CLO. | D102: P Sum | E102: 1.00 | F102: R60,000.00 | G102: =F102 -> R 60,000.00
A104: 1.4.1.2 | B104: PSA 14.5 b | C104: Handling cost and profit in respect of item 1.4.1.1 | D104: % | E104: =F102 -> R60,000.00
A106: 1.4.2 | B106: 8.5 b | C106: PSC Attendance at Site Meeting:
A108: 1.4.2.1 | B108: PSA 14.5 c | C108: Provision for the attendance of PSC members | D108: P Sum | E108: 1.00 | F108: R16,000.00 | G108: =F108 -> R 16,000.00
A110: 1.4.2.2 | B110: PSA 14.5 d | C110: Handling cost and profit in respect of item 1.4.2.1 | D110: % | E110: =F108 -> R16,000.00
A112: 1.5 | B112: 8.5 b | C112: Additional Tests required by Engineer:
A114: 1.5.1 | B114: PSA 14.5 e | C114: Provision for additional tests. | D114: P Sum | E114: 1.00 | F114: R50,000.00 | G114: =F114 -> R 50,000.00
A116: 1.5.2 | B116: PSA 14.5 f | C116: Handling cost and profit in respect of item 1.5.1 | D116: % | E116: R 50,000.00
A120: TOTAL SCHEDULE 1 CARRIED FORWARD
A122: =+A$1 -> Capricon District Municipality
A123: =+A$2 -> RATSAKA WATER SUPPLY
A124: =+A$3 -> SCHEDULE 1 - PRELIMINARY AND GENERAL
A126: ITEM | B126: PAYMENT | C126: DESCRIPTION | D126: UNIT | E126: QUANTITY | F126: RATE | G126: AMOUNT
A127: NO. | B127: REFER.
A128: Brought Forward
A129: 1.6 | B129: PSA6.3 | C129: Occupational Health & safety
C130: Provision for the cost of the Occupational Health &
C131: Safety Act, 85 of 1993, and the relevant regulations:
C133: a) Preparation of Health & Safety Plan | D133: Sum | E133: 1
C135: b) Health and Safety Officer | D135: Sum | E135: 1
C137: c) Health & safety induction training of employees | D137: Sum | E137: 1
C139: d) Compilation and keeping up with date the Health &
C140: Safety file which shall include all documentation
C141: required in terms of the Act. | D141: sum | E141: 1
A180: TOTAL SCHEDULE 1 CARRIED FORWARD
A182: =+A$1 -> Capricon District Municipality
A183: =+A$2 -> RATSAKA WATER SUPPLY
A184: =+A$3 -> SCHEDULE 1 - PRELIMINARY AND GENERAL
A186: ITEM | B186: PAYMENT | C186: DESCRIPTION | D186: UNIT | E186: QUANTITY | F186: RATE | G186: AMOUNT
A187: NO. | B187: REFER.
A188: Brought Forward
A189: 1.7 | C189: DAYWORK:
C190: (As specified in SABS 1200 A and the Project Specifications.)
A193: 1.7 | B193: 8.7 | C193: Labour - Normal Working Hours: [Provisional]
A195: 1.7.1 | C195: Skilled Labour (Artisan). | D195: hr | G195: Rate Only
A197: 1.7.2 | C197: Semi-skilled Labour. | D197: hr | G197: Rate Only
A199: 1.7.3 | C199: Unskilled Labour. | D199: hr | G199: Rate Only
A201: 1.7.4 | C201: Foreman. | D201: hr | G201: Rate Only
A204: 1.8 | B204: 8.7 | C204: Plant - Heavy Equipment
C205: (Plant shall not be more than 3 years old or have more than
C206: 3000 hrs logged. Operator to be qualified and competency
C207: certified).
A209: 1.8.1 | C209: Excavator - Size CAT 225 | D209: hr | G209: Rate Only
A211: 1.8.1 | C211: Excavator - TLB. | D211: hr | G211: Rate Only
A213: 1.8.2 | C213: Grader 140G or similar. | D213: hr | G213: Rate Only
A215: 1.8.3 | C215: Front end loader - bucket capacity ≤ 1.5 m3. | D215: hr | G215: Rate Only
A217: 1.8.4 | C217: Front end loader - bucket capacity > 1.5 m3. | D217: hr | G217: Rate Only
A219: 1.8.5 | C219: Tip truck - 5 m3 capacity | D219: hr | G219: Rate Only
A221: 1.8.6 | C221: Tip truck - 10 m3 capacity | D221: hr | G221: Rate Only
A223: 1.8.7 | C223: Vibratory compactor roller - 13.5 ton | D223: hr | G223: Rate Only
A225: 1.8.8 | C225: Transport cost per any unit of plant to deliver to site and | D225: Sum | G225: Rate Only
C226: remove from site for items 1.8.1 to 1.8.7
A228: 1.9 | B228: 8.7 | C228: Plant - Small Equipment [Provisional]
A230: 1.9.1 | C230: Pedestrain roller - BW90 or similar. | D230: hr | G230: Rate Only
A232: 1.9.2 | C232: Vibratory plate compactor. | D232: hr | G232: Rate Only
A234: 1.9.3 | C234: Vibratory rammer. | D234: hr | G234: Rate Only
A236: 1.9.4 | C236: Transport cost per any unit of plant to deliver to site and | D236: Sum | G236: Rate Only
C237: remove from site for items 1.9.1 to 1.9.3
A240: TOTAL SCHEDULE 1 CARRIED FORWARD TO SUMMARY

Sheet RETICULATION
A1: ='P&G'!A1 -> Capricon District Municipality
A2: ='P&G'!A2 -> RATSAKA WATER SUPPLY | J2: PHASE 1
A3: SCHEDULE 2 : RETICULATION
A5: ITEM | B5: PAYMENT | C5: DESCRIPTION | E5: UNIT | F5: QUANTITY | G5: RATE | H5: AMOUNT | J5: QUANTITY
A6: NO. | B6: REFER. | J6: ph 1 qty | K6: ph 2 qty
A8: 2.1.1 | B8: SABS | C8: SITE CLEARANCE
A9: 2.1.1.1 | B9: 1200C | C9: a) | D9: Clear vegetation and trees of girth up to 1m
D10: (2m Wide on pipeline route) | E10: m | F10: =20876 -> 20,876.00 | J10: 15,901.00 | K10: =F10-J10 -> 4,975.00 | L10: =F10-J10-K10 -> 0
C12: b) | D12: Remove and grub all shrubs (all girth) | E12: ha | F12: 6.00 | J12: 1.00 | K12: =F12-J12 -> 5.00
A14: 2.1.2 | B14: 1200DB | C14: EXCAVATION
A15: 2.1.2.1 | C15: Excavation in all materials for trenches for 200mm
C16: nominal diameter pipes and smaller. Rates to include
C17: backfill, compact and dispose of surplus material
C18: a) | D18: Up to 1,5m deep (700 mm wide) | E18: m | F18: 40,000.00 | J18: =15901-J21-J23 -> 10,889.00 | K18: =F18-J18 -> 29,111.00
A20: 2.1.2.2 | B20: 8.3.2 | C20: Extra-over item 3.1.2.1 for
C21: a) | D21: Intermediate excavation | E21: m³ | F21: 3,500.00 | J21: 4,325.00 | K21: =F21-J21 -> (825.00)
C23: b) | D23: Hard rock excavation | E23: m³ | F23: =0.1*F18 -> 4,000.00 | J23: 687.00 | K23: =F23-J23 -> 3,313.00
A25: 2.1.2.3 | B25: 8.3.3.3 | C25: Excavate and dispose of unsuitable material from
C26: trench bottom | E26: m³ | F26: =35000*0.1*0.5 -> 1,750.00 | J26: 1,500.00 | K26: =F26-J26 -> 250.00
A28: 2.1.2.4 | C28: Import backfill material from designated borrow
C29: pits | E29: m³ | F29: =35000*1*0.5 -> 17,500.00 | J29: 1,440.00 | K29: =F29-J29 -> 16,060.00
A31: 2.1.2.5 | C31: Opening up and closing down of designated
C32: borrow pit | E32: ha | F32: 0.50 | H32: Rate Only | J32: 0.50 | K32: =F32-J32 -> 0
A34: 2.1.2.7 | B34: 8.3.4 | C34: Overhaul
C35: a) | D35: Limited overhaul (0,5 to 1,0km) | E35: m³ | F35: =F29 -> 17,500.00 | H35: Rate Only | J35: 4,543.00 | K35: =F35-J35 -> 12,957.00
K36: =F36-J36 -> 0
C37: b) | D37: Long overhaul | E37: m³.km | F37: =F35*0.1 -> 1,750.00 | H37: Rate Only | J37: =+J35*1.5 -> 6,814.50 | K37: =F37-J37 -> (5,064.50)
A39: 2.1.2.8 | C39: Existing Services
C40: a) | D40: Excavate and expose of existing services | E40: No | F40: 30.00 | J40: 20.00 | K40: =F40-J40 -> 10.00
C42: b) | D42: Services that adjoin a trench | E42: m | F42: 100.00 | H42: Rate Only | J42: 100.00 | K42: =F42-J42 -> 0
C44: c) | D44: Services that intersect a trench | E44: No | F44: 10.00 | H44: Rate Only | J44: 10.00 | K44: =F44-J44 -> 0
A46: 2.1.3 | B46: SABS | C46: PIPE BEDDING
A47: 2.1.3.1 | B47: 1200LB | C47: Provision of bedding from trench excavations
C48: a) | D48: Selected Granula Material | E48: m³ | F48: =35000*0.1*1 -> 3,500.00 | J48: 1,700.00 | K48: =F48-J48 -> 1,800.00
B50: 8.2.2.2 | C50: b) | D50: Selected fill material | E50: m³ | F50: =0.1*F48 -> 350.00 | J50: 800.00 | K50: =F50-J50 -> (450.00)
A52: TOTAL CARRIED FORWARD
A53: =+A$1 -> Capricon District Municipality
A54: =+A$2 -> RATSAKA WATER SUPPLY
A55: =+A$3 -> SCHEDULE 2 : RETICULATION
A57: ITEM | B57: PAYMENT | C57: DESCRIPTION | E57: UNIT | F57: QUANTITY | G57: RATE | H57: AMOUNT | J57: QUANTITY
A58: NO. | B58: REFER.
A59: Brought Forward
A60: 2.1.3.2 | C60: Provision of selected fill material for flexible pipe
C61: blanket
C62: a) | D62: Trench excavation 1500mm deep | E62: m³ | F62: =35000*1*0.5 -> 17,500.00 | J62: 2,230.00 | K62: =F62-J62 -> 15,270.00
B63: 8.2.2.2 | C63: b) | D63: Borrow pits (Provisional) | E63: m³ | F63: 0.00 | H63: Rate Only | J63: 0.00
A64: 2.1.2.3 | C64: Overhaul for imported material for bedding cradle
C65: and selected fill blanket (Provisional) | E65: m³.km | F65: =+(F50+F63)*1.5 -> 525.00 | H65: Rate Only | J65: 4,000.00 | K65: =F65-J65 -> (3,475.00)
B67: SABS
A68: 2.1.4 | B68: 1200L | C68: uPVC PRESSURE PIPE AND PIPE FITTINGS
A69: 2.1.4.1 | B69: 8.2.1 | C69: Supply, lay, bed and test the following uPVC pressure
C70: pipes (conforming with SABS 966-1976 specifications)
C71: in 6m lengths each pipe fitted at one end with socket
C72: for Mechanical jointing, in the following diameters :
C73: a) | D73: 63mm dia Class 16 | E73: m | F73: 0.00 | H73: Rate Only | J73: 200.00 | K73: =F73-J73 -> (200.00)
C74: b) | D74: 63mm dia Class 12 | E74: m | F74: 18,500.00
C75: c) | D75: 63mm dia Class 9 | E75: m | F75: 0.00 | H75: Rate Only | J75: 1,000.00 | K75: =F75-J75 -> (1,000.00)
C76: d) | D76: 63mm dia Class 6 | E76: m | F76: 0.00 | H76: Rate Only | J76: 550.00 | K76: =F76-J76 -> (550.00)
C77: e) | D77: 75mm dia Class 12 | E77: m | F77: 1,400.00
C78: f) | D78: 75mm dia Class 9 | E78: m | F78: 0.00 | H78: Rate Only | J78: 4,030.00 | K78: =F78-J78 -> (4,030.00)
C79: g) | D79: 110mm dia Class 12 | E79: m | F79: 0.00 | H79: Rate Only
C80: h) | D80: 110mm dia Class 16 | E80: m | F80: 0.00 | H80: Rate Only | J80: 400.00 | K80: =F80-J80 -> (400.00)
C81: i) | D81: 160mm dia Class 12 | E81: m | F81: 12,500.00 | J81: =91+8500 -> 8,591.00 | K81: =F81-J81 -> 3,909.00
C82: j) | D82: 200mm dia Class 12 | E82: m | F82: 2,500.00 | J82: 1,130.00 | K82: =F82-J82 -> 1,370.00
A84: 2.1.4.2 | C84: FITTINGS AND SPECIALS FOR FIXING ONTO
C85: uPVC PIPES
C86: Fittings to be suitable for coupling directly (mechanically)
C87: onto pipes. Each fitting socketed for mechanical jointing.
C88: Fittings for PVC Class 16 (unless otherwise specified)
C89: Fittings to be of PVC, Cast Iron or epoxy coated steel.
C90: Fittings
C91: a) | D91: Tee`s
C92: (i) | D92: 200mm Equal T | E92: No | F92: 5.00 | J92: 1.00 | K92: =F92-J92 -> 4.00
C93: (ii) | D93: 110mm Equal T | E93: No | F93: 0.00 | H93: Rate Only | J93: 16.00 | K93: (16.00)
C94: (iii) | D94: 160mm x 63mm T | E94: No | F94: 50.00 | J94: 3.00 | K94: 47.00
C95: (iv) | D95: 160mm x 75mm T | E95: No | F95: 5.00 | J95: 5.00 | K95: 0
C96: (v) | D96: 75mm Equal T | E96: No | F96: 2.00 | J96: 12.00 | K96: (10.00)
C97: (vi) | D97: 75mm x 63mm T | E97: No | F97: 1.00 | J97: 4.00 | K97: (3.00)
C98: (vii) | D98: 63mm Equal T | E98: No | F98: 50.00 | J98: 3.00 | K98: 47.00
C100: b) | D100: Reduccers
C101: (i) | D101: 160 x 63 B | E101: No | F101: 50.00 | J101: 4.00 | K101: =F101-J101 -> 46.00
C102: (ii) | D102: 2000 X 75 B | E102: No | F102: 10.00 | J102: 13.00 | K102: =F102-J102 -> (3.00)
C103: (iii) 110mm x 75mm Reducing Tee | D103: 75mm x 63mm B | E103: No | F103: 2.00 | J103: 7.00 | K103: =F103-J103 -> (5.00)
C104: (iv) | D104: 200mm x 160 L | E104: No | F104: 2.00 | J104: 2.00 | K104: =F104-J104 -> 0
C106: c) | D106: uPVC Long radius bends
C107: (i) | D107: 90 Deg. 200mm dia | E107: No | F107: 10.00 | J107: 5.00 | K107: =F107-J107 -> 5.00
C108: (ii) | D108: 90 Deg. 160mm dia. | E108: No | F108: 25.00 | J108: 5.00 | K108: =F108-J108 -> 20.00
C109: (iii) | D109: 90 Deg. 75mm dia. | E109: No | F109: 4.00 | J109: 4.00 | K109: =F109-J109 -> 0
C110: (iv) | D110: 90 Deg. 63mm dia. | E110: No | F110: 50.00
C111: (vii) | D111: 45 Deg. 200mm dia. | E111: No | F111: 1.00 | J111: 5.00 | K111: =F111-J111 -> (4.00)
C113: (viii) | D113: 45 Deg. 110mm dia. | E113: No | F113: 10.00 | J113: 5.00 | K113: =F113-J113 -> 5.00
A114: TOTAL CARRIED FORWARD
A116: =+A$1 -> Capricon District Municipality
A117: =+A$2 -> RATSAKA WATER SUPPLY
A118: =+A$3 -> SCHEDULE 2 : RETICULATION
A120: ITEM | B120: PAYMENT | C120: DESCRIPTION | E120: UNIT | F120: QUANTITY | G120: RATE | H120: AMOUNT | J120: QUANTITY
A121: NO. | B121: REFER.
A122: Brought Forward
C123: (ix) | D123: 45 Deg. 75mm dia. | E123: No | F123: 1.00 | J123: 5.00 | K123: =F123-J123 -> (4.00)
D124: 45 Deg. 63mm dia. | E124: No | F124: 10.00 | J124: 1.00 | K124: =F124-J124 -> 9.00
C125: (xiii) | D125: 22.5 Deg. 200mm dia. | E125: No | F125: 4.00 | J125: 7.00 | K125: =F125-J125 -> (3.00)
C126: (xiv) | D126: 22.5 Deg. 160mm dia. | E126: No | F126: 4.00 | J126: 14.00 | K126: =F126-J126 -> (10.00)
C127: (xv) | D127: 22.5 Deg. 75mm dia. | E127: No | F127: 13.00 | J127: 5.00 | K127: =F127-J127 -> 8.00
D128: 22,5 Deg. 63mm dia. | E128: No | F128: 1.00
C129: (xxi) | D129: 11.5 Deg. 200mm dia. | E129: No | F129: 2.00 | J129: 10.00 | K129: =F129-J129 -> (8.00)
C130: (xx) | D130: 11.5 Deg. 160mm dia. | E130: No | F130: 5.00 | J130: 31.00 | K130: =F130-J130 -> (26.00)
C131: (xxi) | D131: 11.5 Deg. 75mm dia. | E131: No | F131: 3.00 | J131: 18.00 | K131: =F131-J131 -> (15.00)
D132: 11,5 Deg. 63mm dia. | E132: No | F132: 20.00 | J132: 6.00 | K132: =F132-J132 -> 14.00
C134: d) | D134: CI End Cap for uPVC pipes
C135: (i) | D135: 200mm dia. | E135: No | F135: 2.00 | J135: 5.00 | K135: =F135-J135 -> (3.00)
C136: (ii) | D136: 110mm dia. | E136: No | F136: 2.00 | J136: 6.00 | K136: =F136-J136 -> (4.00)
C137: (iii) | D137: 75mm dia. | E137: No | F137: 2.00 | J137: 10.00 | K137: =F137-J137 -> (8.00)
C138: (iv) | D138: 63mm dia. | E138: No | F138: 15.00 | J138: 9.00 | K138: =F138-J138 -> 6.00
C140: e) | D140: CI Reducer for uPVC pipes
C141: (i) | D141: 200mm x 160mm | E141: No | F141: 1.00 | J141: 4.00 | K141: =F141-J141 -> (3.00)
C142: (ii) | D142: 160mm x 63mm | E142: No | F142: 50.00 | J142: 8.00 | K142: =F142-J142 -> 42.00
C143: (iii) | D143: 160mm x 75mm | E143: No | F143: 1.00 | J143: 5.00 | K143: =F143-J143 -> (4.00)
C144: (iv) | D144: 75mm x 63mm | E144: No | F144: 4.00 | J144: 14.00 | K144: =F144-J144 -> (10.00)
C146: f) | D146: Double Socket for uPVC pipes
C147: (i) | D147: 200mm dia. | E147: No | F147: 5.00 | H147: Rate Only | J147: 5.00 | K147: =F147-J147 -> 0
C148: (ii) | D148: 160mm dia. | E148: No | F148: 5.00 | H148: Rate Only | J148: 7.00 | K148: =F148-J148 -> (2.00)
C149: (iii) | D149: 75mm dia. | E149: No | F149: 5.00 | H149: Rate Only
C151: g) | D151: RSV Gate Valves with non rising spindle, cap top.
D152: Supply and install complete as per detail the
D153: following Gate valves. Incl. Valve box.
C154: (i) | D154: 200mm dia. | E154: No | F154: 1.00 | J154: 2.00 | K154: =F154-J154 -> (1.00)
C155: (ii) | D155: 160mm dia. | E155: No | F155: 20 | J155: 5 | K155: =F155-J155 -> 15.00
C156: (ii) | D156: 75mm dia. | E156: No | F156: 4 | J156: 2 | K156: =F156-J156 -> 2.00
C157: (iii) | D157: 63mm dia | E157: No | F157: 10 | J157: 0 | K157: =F157-J157 -> 10.00
C159: h) | D159: Cut into and connect to existing mains
C160: i) | D160: VJ flange to suit the following
C161: (i) | D161: 200mm dia uPVC x 100mm dia GI | E161: No | F161: 1.00 | J161: 2.00 | K161: =F161-J161 -> (1.00)
C162: (ii) | D162: 200mm dia uPVC x 160mm dia Pvc | E162: No | F162: 1.00 | J162: 2.00 | K162: =F162-J162 -> (1.00)
C164: j) | D164: Pipeline markers - as per standard drawings | E164: No | F164: =35000/250 -> 140.00 | J164: 5.00 | K164: =F164-J164 -> 135.00
C166: k) | D166: Supply and construct 25th air valves (Ventomat type) completed with manhole, covers and all fittings - as per DWAF details
C169: (i) | D169: 200mm dia | E169: No | F169: 2.00 | J169: 1.00 | K169: =F169-J169 -> 1.00
C170: (i) | D170: 160mm dia | E170: No | F170: 10.00
C172: l) | D172: Supply and construct 50mm air valves (Ventomat type) completed with manhole, covers and all fittings - as per DWAF details
A175: TOTAL CARRIED FORWARD
A176: =+A$1 -> Capricon District Municipality
A177: =+A$2 -> RATSAKA WATER SUPPLY
A178: =+A$3 -> SCHEDULE 2 : RETICULATION
A180: ITEM | B180: PAYMENT | C180: DESCRIPTION | E180: UNIT | F180: QUANTITY | G180: RATE | H180: AMOUNT | J180: QUANTITY
A181: NO. | B181: REFER.
A182: Brought Forward
C183: (i) | D183: 200mm dia | E183: No | F183: 1.00 | H183: Rate Only | J183: 0.00 | K183: =F183-J183 -> 1.00
C184: (ii) | D184: 160mm dia | E184: No | F184: 10.00 | J184: 0.00 | K184: =F184-J184 -> 10.00
C185: (iii) | D185: 110mm dia | E185: No | F185: 0.00 | H185: Rate Only | J185: 0.00 | K185: =F185-J185 -> 0
C187: m) | D187: Supply and construct scour valves
D188: complete with manhole, covers and all fittings - as
D189: per DWAF details
C190: (i) | D190: 200 mm dia | E190: No | F190: 1.00 | J190: 1.00 | K190: =F190-J190 -> 0
C191: (i) | D191: 160 mm dia | E191: No | F191: 6.00
K192: =F192-J192 -> 0
C193: n) | D193: Disconnect Existing Standpipes on the Alpha sand
D194: Pipe Line and repair the pipe. (Rate to include for
D195: Disconnecting and supply of all materials to restore | E195: No | F195: 0.00 | H195: Rate Only | J195: 4.00 | K195: =F195-J195 -> (4.00)
D196: the pipe)
B198: PSDB 5.6 | C198: Backfill and Compaction:
B199: L.I. | D199: Backfill and compact trenches using labour intensive methods. | E199: m3 | F199: 20,000.00 | J199: 7,235.00 | K199: =F199-J199 -> 12,765.00
D200: Backfill road crosings using a commercial type G4 material compacted to 98% Mod. AASHTO density. | E200: m3 | F200: 1,000.00 | J200: 300.00 | K200: =F200-J200 -> 700.00
D201: Dispose of surplus excavated material. | E201: m3 | F201: 950.00 | J201: 250.00 | K201: =F201-J201 -> 700.00
C203: Excavation Ancillaries;
D204: Make up deficiency in backfill material from other excavations. | E204: m3 | F204: =35000*1*0.1 -> 3,500.00 | J204: 3,500.00 | K204: =F204-J204 -> 0
D205: Make up deficiency in backfill material from borrow pits. Free-haul is 5.0 km. | E205: m3 | F205: 0.00 | H205: Rate Only
D206: Pipe protection installed at 300 mm below top of finished backfill level using 3 strips of danger tape. | E206: m | F206: 10.00 | J206: 10.00 | K206: =F206-J206 -> 0
D207: Opening and closing designated borrow pits. | E207: P Sum | F207: 1.00 | H207: Rate Only | J207: 1.00 | K207: =F207-J207 -> 0
D208: Compaction within road reserve to 90 % of Modified AASHTO density clause 5.7.1. | E208: m3 | H208: Rate Only
D209: Compaction within road reserve to 98 % of Modified AASHTO density, as per clause 5.7.2. | E209: m3 | H209: Rate Only
D211: Overhaul in excess of the free-haul of 5.0 km. | E211: m3-km | H211: Rate Only
C213: MISCELLANEOUS
A214: 2.1.5 | C214: Concrete thrust block configuration.
A215: 2.1.5.1 | B215: L.I. | C215: a) | D215: Concrete volume < 0,5m³ (Provisional) | E215: No | F215: =SUM(F130:F154)+SUM(F100:F118) -> 285.00 | J215: 30.00 | K215: =F215-J215 -> 255.00
B217: SABS | C217: STANDPIPES
A218: 2.1.6 | B218: 1200LF
B219: L.I. | C219: a) | D219: Supply handle and install communal stand pipes
D220: complete including all fittings,concrete work and
D221: two SABS approved taps with hose connection
D222: as per detail drawings | E222: No | F222: 917.00 | J222: 310.00 | K222: =F222-J222 -> 607.00
C224: b) | D224: Supply all Materials and fittings required for the installation of domestic water meters
E225: No | F225: 917.00 | J225: 0.00 | K225: =F225-J225 -> 917.00
A227: 2.1.7 | B227: 8.3.6 | C227: FINISHING
C228: Re-instate the road surface complete with all courses
C229: a) | D229: 150 layer of G5 material compacted to 98 MOD | E229: m2 | F229: 0.00 | H229: Rate Only | J229: 0.00 | K229: =F229-J229 -> 0
A231: 2.1.8 | C231: Submit as-built drawings of all existing services and
C232: adjustments to Construction drawings before
C233: submission of final payment certificate | E233: sum | F233: 1.00 | J233: 1.00 | K233: =F233-J233 -> 0
A234: TOTAL CARRIED FORWARD TO SUMMARY | H234: =SUM(H182:H233) -> 0
H235: =3510684-3510684.76 -> -0.7599999998

Sheet ELEVATED TANK
A1: ='P&G'!A1 -> Capricon District Municipality
A2: ='P&G'!A2 -> RATSAKA WATER SUPPLY
A3: SCHEDULE 3 : ELEVATED STEEL TANK
A5: ITEM | B5: PAYMENT | C5: DESCRIPTION | D5: UNIT | E5: QUANTITY | F5: RATE | G5: AMOUNT
A6: NO. | B6: REFER.
A8: D | B8: PET | C8: ELEVATED STEEL TANK
A10: C.1 | C10: ELEVATED STEEL TANK 15m STAND
A12: C.1.1 | B12: PSA 8.5(e)1 | C12: Elevated tank (750m³) | D12: Sum | E12: 1 | I12: 1 | J12: 0.00 | K12: =E12-I12 -> 0
I13: 1 | J13: 1,500,000.00 | K13: =E13-I13 -> (1.00)
A15: C.2 | C15: ANCILLARY WORKS
A17: C.2.1 | C17: Offloading from suppliers delivery vehicle the complete structure (+ 11.23 tons) | D17: Sum | E17: 1 | I17: 1 | J17: 3,000.00 | K17: =E17-I17 -> 0
A19: C.3 | C19: LIGHTINING PROTECTION
A21: C.3.1 | C21: Specialist sub-contractor for lightning protection | D21: Sum | E21: 1 | I21: 1 | J21: 15,000.00 | K21: =E21-I21 -> 0
A23: C.4 | B23: SABS 1200C | C23: SITE CLEARANCE
A25: C.4.1 | B25: 8.2.1 | C25: Clear & grub vegetation & smaller trees up to 1m girth | D25: m2 | E25: =20*20 -> 400 | I25: 150 | J25: 8.50 | K25: =E25-I25 -> 250.00
H26: =+E25/E17 -> 400
A27: C.5 | B27: SABS 1200D | C27: EARTHWORKS FOR FOUNDATIONS
A29: C.5.1 | B29: 8.3.2 (a) | C29: Excavate in all materials and dispose excess material | D29: m³ | E29: 60 | I29: 180 | J29: 25.00 | K29: =E29-I29 -> (120.00)
A31: C.6 | C31: MISCELLANEOUS
A32: C.6.1 | C32: Allow for the filling of the tank once with clean water for testing purpose | D32: Sum | E32: 1 | I32: 1 | J32: 5,000.00 | K32: =E32-I32 -> 0
A34: C.6.2 | B34: 8.3.4 | C34: Supply 150g of Calcium Hyperchloride per m³ of water for sterilising the elevated tank | D34: kg | E34: 150 | I34: 25 | J34: 50.00 | K34: =E34-I34 -> 125.00
A36: C.7 | C36: SCOUR
A38: C.7.1 | C38: 80mm Ø GMS Flange threaded inside | D38: No. | E38: 1 | I38: 1 | J38: 1,500.00 | K38: =E38-I38 -> 0
A40: C.7.2 | C40: 80mm Ø GMS Barrel nipple, 100mm long, threaded both sides | D40: No. | E40: 1 | I40: 1 | J40: 600.00 | K40: =E40-I40 -> 0
A42: C.7.3 | C42: 80mm Ø GMS Barrel nipple, 100mm long, threaded one side | D42: No. | E42: 1 | I42: 1 | J42: 1,500.00 | K42: =E42-I42 -> 0
A44: C.7.4 | C44: 800MM Ø Brass fullway gate valve | D44: No. | E44: 1 | I44: 1 | J44: 900.00 | K44: =E44-I44 -> 0
A46: C.8 | C46: OVERFLOW
A48: C.8.1 | C48: 100mm Ø GMS pipe, 100mm long, flanged one end | D48: No. | E48: 1 | I48: 1 | J48: 1,600.00 | K48: =E48-I48 -> 0
A50: C.9 | C50: INLET PIPE
C51: Supply delivery and installation of all pipes for the inlet pipes, comprising of pipes, fittings, jointing, materials, gaskets, bolts, etc as for complete installation (All pipes (See detailed drawings for items listed below hot dip galvanised)
C52: Item (To SABS 1123, Table 1600/3)
A54: TOTAL CARRIED FORWARD
A55: =+A$1 -> Capricon District Municipality
A56: =+A$2 -> RATSAKA WATER SUPPLY
A57: =+A$3 -> SCHEDULE 3 : ELEVATED STEEL TANK
A59: ITEM | B59: PAYMENT | C59: DESCRIPTION | D59: UNIT | E59: QUANTITY | F59: RATE | G59: AMOUNT | I59: QUANTITY
A60: NO. | B60: REFER.
A61: Brought Forward
A62: C.9.1 | C62: a 150mm Ø Aqualok flange adaptor | D62: No. | E62: 1 | I62: 1 | J62: 800.00 | K62: =E62-I62 -> 0
A64: C.9.2 | C64: b 150mm Ø Pipe GMS section (1750mm long) FOE | D64: No. | E64: 1 | I64: 1 | J64: 1,400.00 | K64: =E64-I64 -> 0
A66: C.9.3 | C66: c 150mm Ø GMS long radius bend FBE | D66: No. | E66: 2 | I66: 2 | J66: 1,200.00 | K66: =E66-I66 -> 0
A68: C.9.4 | C68: d 150mm Ø Pipe GMS section (6036mm long, FTF) | D68: No. | E68: 2 | I68: 2 | J68: 3,300.00 | K68: =E68-I68 -> 0
A70: C.9.5 | C70: e 150mm Ø Pipe GMS secton (2085mm long, FTF) | D70: No. | E70: 1 | I70: 1 | J70: 2,600.00 | K70: =E70-I70 -> 0
A72: C.10 | C72: OUTLET PIPE
C73: Item (SABS 1123, Table 1600/3)
A75: C.10.1 | C75: a 150mm Ø Aqualok flanfe adaptor | D75: No. | E75: 1 | I75: 1 | J75: 900.00 | K75: =E75-I75 -> 0
A77: C.10.2 | C77: b 150mm Ø Pipe GMS section (1750mm long) FOE | D77: No. | E77: 1 | I77: 1 | J77: 1,400.00 | K77: =E77-I77 -> 0
A79: C.10.3 | C79: c 150mm Ø GMS long radius bend FBE | D79: No. | E79: 2 | I79: 2 | J79: 1,300.00 | K79: =E79-I79 -> 0
H80: 104.84
A81: C.10.4 | C81: d 150mm Ø Pipe GMS section (6036mm long, FTF) | D81: No. | E81: 1 | H81: 69.97 | I81: 1 | J81: 3,600.00 | K81: =E81-I81 -> 0
H82: 33.1
A83: C.10.5 | C83: e 150mm Ø Pipe GMS secton (2085mm long, FTF) | D83: No. | E83: 1 | H83: 180 | I83: 1 | J83: 3,100.00 | K83: =E83-I83 -> 0
A85: C.11 | B85: SABS 1200G | C85: CONCRETE (STRUCTURAL)
H86: 150
A87: C.11.1 | B87: 8.2 | C87: SCHEDULE FORMWORK ITEMS
B89: 8.2.1 | C89: Rough surface finish (vertical) | D89: m2 | E89: 150 | I89: 100 | J89: 75.00 | K89: =E89-I89 -> 50.00
B91: 8.2.2 | C91: Smooth surface finish (vertical) | D91: m2 | E91: 100 | H91: =+SUM(E80:E82)+100 -> 101.00 | I91: 100 | J91: 180.00 | K91: =E91-I91 -> 0
A93: C.11.2 | B93: 8.3 | C93: SCHEDULE REINFORCEMENT ITEMS
B95: 8.3.1 | C95: a) Mild steel bars | D95: t | E95: 1 | I95: 1 | J95: 13,000.00 | K95: =E95-I95 -> 0
C97: b) High-tensile steel bars | D97: t | E97: 4 | I97: 6 | J97: 13,000.00 | K97: =E97-I97 -> (2.00)
H98: 661.75 | K98: =+J98*$I$77 -> 0
A99: C.11.3 | B99: 8.4 | C99: SCHEDULE CONRETE ITEMS | H99: 389.03 | K99: =+J99*$I$77 -> 0
B101: 8.4.1 | C101: Blinding layer in foundation concrete
H102: 186.73 | K102: =+J102*$I$77 -> 0
B103: 8.4.2 | C103: Minimum 75mm thickness, 20mPa/19mm grade | D103: m2 | E103: 150 | I103: 150 | J103: 10.00 | K103: =E103-I103 -> 0
K104: =+J104*$I$77 -> 0
B105: 8.4.3 | C105: Strength concrete, 30MPa/19mm | D105: m³ | E105: 70 | I105: 63 | J105: 15.00 | K105: =E105-I105 -> 7.00
A107: C.12 | B107: SABS 1200H | C107: STRUCTURAL STEELWORK | H107: 575.76 | K107: =+J107*$I$77 -> 0
H108: 360.36
A109: C.12.1 | B109: 8.3.4 | C109: SCHEDULED ERECTION BOLTS ITEMS
C111: Supply, deliver and install M24 HD bolts, 100mm long, including washers and nuts, complete as per detailed drawings | D111: No. | E111: 36 | I111: 72 | J111: 300.00 | K111: =E111-I111 -> (36.00)
I113: 1 | J113: 100,000.00 | K113: =E113-I113 -> (1.00)
K114: =+J114*$I$77 -> 0
A115: TOTAL CARRIED FORWARD

Sheet PUMPS
B2: =RETICULATION!A53 -> Capricon District Municipality
B3: =RETICULATION!A54 -> RATSAKA WATER SUPPLY
B5: SCHEDULE VC: WATER SUPPLY AND NETWORK DISTRIBUTION WORKS
B6: SCHEDULE 4: PUMPS
B8: ITEM NUMBER | C8: PAYMENT CLAUSE | D8: DESCRIPTION | E8: UNIT | F8: QUANTITY | G8: RATE | H8: AMOUNT
B10: SANS 1200D | D10: PUMPS
D11: (As specified in the Project Specifications.)
B13: 4.1 | C13: PS VC 10 | D13: Supply and Delivery of Pumps
B15: 4.1.2 | C15: PS VC 10.1 | D15: Supply, deliver, Install,commission,comissioning and maintanance(during defect liability period) of positive displacement pumps complete with acceseries
C16: i) | D16: BOREHOLE H16-2918 (Yield=3 l/s,depth=46m)
D17: a) BP 16H Element complete with:15x65mm columns,30xbobbin bearings,5xstabilisers,30 line shafts,complete head, vee belts,taper lock,motor mount bracket e.t.c. | E17: NO | F17: 1
C19: ii) | D19: BOREHOLE H16-2808A (Yield=3.8 l/s,depth=50m)
D20: a) BP 23M Element complete with:15x65mm columns,30xbobbin bearings,8xstabilisers,30 line shafts,complete head, vee belts,taper lock,motor mount bracket e.t.c. | E20: NO | F20: 1
C22: iii) | D22: BOREHOLE H16-2808 (Yield=1.3 l/s,depth=55m)
D23: a) BP 23M Element complete with:17x65mm columns,34xbobbin bearings,8xstabilisers,34 line shafts,complete head, vee belts,taper lock,motor mount bracket e.t.c. | E23: NO | F23: 1
C25: iv) | D25: BOREHOLE H16-2807 (Yield=1.9 l/s,depth=60m)
D26: a) BP 16H Element complete with:20x65mm columns,40xbobbin bearings,8xstabilisers,40 line shafts,complete head, vee belts,taper lock,motor mount bracket e.t.c. | E26: NO | F26: 1
C27: v) | D27: BOREHOLE H16-2809 (Yield=1.8 l/s,depth=60m)
D28: a) BP 16H Element complete with:20x65mm columns,40xbobbin bearings,8xstabilisers,40 line shafts,complete head, vee belts,taper lock,motor mount bracket e.t.c. | E28: NO | F28: 1
C29: vi) | D29: BOREHOLE H16-2806 (Yield=1.0l/s,depth=55m)
D30: a) BP 6MRCL Element complete with:18x65mm columns,36xbobbin bearings,8xstabilisers,36 line shafts,complete head, vee belts,taper lock,motor mount bracket e.t.c. | E30: NO | F30: 1
C32: PS VC 10.2 | D32: Supply, deliver, Install,commission,comissioning and maintanance(during defect liability period) of a three phase Electrical motor 4-pole foot mount complete with taper lock,vee belts and pulley
D33: a) 11kw | E33: No | F33: 5
D34: b) 7.5kw | E34: No | F34: 1
C36: PS VC 10.3 | D36: design,fabricate and install delivery maniford as detailed on the delivery pipework maniford drawing to Dwa specs including 2xgate valves,pressure swith,flow switch,water meter,non return valve,galvernised pipes etc
D37: a) 65mm pipework | E37: No | F37: 5
D38: b) 50mm pipework | E38: No | F38: 1
B41: 4.1.4 | C41: PS VC 10.4 | D41: Compile, Supply and delivery a complete set of operation and maintenance manuals of all pumps as specified and measured above | E41: Prov Sum | F41: 1
B43: 4.1.5 | D43: Design, manufacture, supply, delivery, installation, testing, commissioning and maintenance for a 12 month period of a DWA spec control box for borehole automation including probes | E43: No | F43: 6
B45: 4.1.6 | D45: Eskom Transformers
D47: (a) Provisional sum for application of Eskom transformers for 6 boreholes | E47: Prov Sum | F47: 1 | G47: R673,773.65 | H47: =G47 -> 673,773.65
D49: Contractor's handling costs, profit and all other charges in respect of item 4.1.6 | E49: % | F49: =G47 -> R673,773.65
B51: 4.2 | C51: PS VC 4.2 | D51: Supply and erect fence
B52: 4.2.1 | D52: Supply and Installation of concrete palisade fence (36m per borehole) as specified on the drawing | E52: no | F52: 6
B54: 4.2.2 | D54: Palisade steel gate 2,4 x 6m as per drawing | E54: no | F54: 1
B56: 4.3 | C56: PS PME 4.2.3 | D56: Pump House
B57: 4.3.1 | D57: Erect pre-fabricated reinforced concrete pump house
D58: complete with locking device as per drawing. | E58: no | F58: 6
C60: PS PME 4.2.4 | D60: Existing Equipment
D61: Take out existing borehole equipment, clean and
D62: store on site. Rust prevention fluid to be put on all
D63: sockets and threads. | E63: no | F63: 1
B65: TOTAL SCHEDULE 4 - CARRIED TO SUMMARY:

Sheet SUMMARY
A2: CAPRICORN DISTRICT MUNICIPALITY
A4: ='P&G'!A2 -> RATSAKA WATER SUPPLY
A6: PROJECT NUMBER : INF- W30/2022/2023
A8: SUMMARY OF SCHEDULES
A10: ESTIMATED CONSTRUCTION FEE
A12: SCHEDULE 1 : | B12: PRELIMINARY AND GENERAL
A14: SCHEDULE 2 : | B14: RETICULATION
A16: SCHEDULE 3 : | B16: STEEL ELAVATED TANK
A18: SCHEDULE 4 : | B18: PUMPS & PUMP HOUSE
A21: SUB - TOTAL 1
A25: Provide the sum of 10% of Total 1 for contingencies to be used at the discretion of the
A43: SUB - TOTAL 2
A45: ADD 15% VAT
A47: TOTAL CONTRACT AMOUNT
